bitfinex/quotes_BTCUSD_20250817
["timestamp","ask_amount","ask_price","bid_price","bid_amount"]
[1755407701691,0.87291216,118370.0,118360.0,0.168976]
[1755407701905,0.87291216,118370.0,118360.0,0.299296]
[1755407703562,0.87291216,118370.0,118360.0,0.299336]
[1755407704695,0.89830816,118370.0,118360.0,0.299336]
[1755407705129,0.88250596,118370.0,118360.0,0.302446]
[1755407705349,0.89833252,118370.0,118360.0,0.302446]
[1755407706426,0.89833252,118370.0,118360.0,0.299336]
[1755407706895,0.89833252,118370.0,118350.0,0.17222421]
[1755407707196,1.02857252,118370.0,118360.0,0.13028]
[1755407707421,0.89833252,118370.0,118360.0,0.13028]
[1755407708051,0.89833824,118370.0,118360.0,0.13028]
[1755407708915,0.89834012,118370.0,118360.0,0.13028]
[1755407709135,0.55291189,118370.0,118360.0,0.13028]
[1755407709356,0.89834012,118370.0,118360.0,0.13028]
[1755407710424,0.55291189,118370.0,118360.0,0.13028]
[1755407710647,0.89834012,118370.0,118360.0,0.13028]
[1755407711562,0.168976,118360.0,118350.0,0.00323393]
[1755407711779,0.51440423,118360.0,118350.0,0.00012393]
[1755407712001,0.53195839,118360.0,118350.0,0.13044393]
[1755407712228,1.00334839,118360.0,118350.0,0.00012393]
[1755407712447,1.11356244,118360.0,118350.0,0.00012393]
[1755407712663,1.13916874,118360.0,118350.0,0.00012393]
[1755407713101,1.13916874,118360.0,118350.0,0.00112393]
[1755407713558,1.13916874,118360.0,118350.0,0.00012393]
[1755407713953,1.11356244,118360.0,118350.0,0.00012393]
[1755407714155,1.11249244,118360.0,118350.0,0.00012393]
[1755407714781,1.11249244,118360.0,118350.0,0.00112393]
[1755407714999,1.11249244,118360.0,118350.0,0.00012393]
[1755407715421,1.11449244,118360.0,118350.0,0.00012393]
[1755407715633,1.19931368,118360.0,118350.0,0.00012393]
[1755407715855,1.54581191,118360.0,118350.0,0.00012393]
[1755407716476,1.11556244,118360.0,118350.0,0.00012393]
[1755407716684,1.11449244,118360.0,118350.0,0.00012393]
[1755407717321,1.1144766,118360.0,118350.0,0.00012393]
[1755407717784,1.11447392,118360.0,118350.0,0.00012393]
[1755407718199,1.16525392,118360.0,118350.0,0.00012393]
[1755407726342,1.14943828,118360.0,118350.0,0.00012393]
[1755407726563,1.16524792,118360.0,118350.0,0.00012393]
[1755407729307,0.81981969,118360.0,118350.0,0.00012393]
[1755407729526,1.16524792,118360.0,118350.0,0.00012393]
[1755407729949,1.25006916,118360.0,118350.0,0.00012393]
[1755407731712,1.16524792,118360.0,118350.0,0.00012393]
[1755407732139,0.81981969,118360.0,118350.0,0.00012393]
[1755407732530,1.11446792,118360.0,118350.0,0.00012393]
[1755407735300,1.11448036,118360.0,118350.0,0.00012393]
[1755407735504,1.92920761,118360.0,118350.0,0.00012393]
[1755407735759,6.85034569,118360.0,118350.0,0.00012393]
[1755407735918,6.85034741,118360.0,118350.0,0.00012393]
[1755407737090,7.00034741,118360.0,118350.0,0.00012393]
[1755407737526,7.00476222,118360.0,118350.0,0.00012393]
[1755407739416,6.91994098,118360.0,118350.0,0.00012393]
[1755407740314,6.93817886,118360.0,118350.0,0.00012393]
[1755407743768,6.93617886,118360.0,118350.0,0.00012393]
[1755407744438,6.93224496,118360.0,118350.0,0.00012393]
[1755407744654,6.93819389,118360.0,118350.0,0.00012393]
[1755407744860,7.02301513,118360.0,118350.0,0.00012393]
[1755407745078,7.02301518,118360.0,118350.0,0.00012393]
[1755407745351,7.02301532,118360.0,118350.0,0.00012393]
[1755407745587,7.02401532,118360.0,118350.0,0.00012393]
[1755407745781,7.02201532,118360.0,118350.0,0.00012393]
[1755407746007,7.02401532,118360.0,118350.0,0.00012393]
[1755407746389,7.02601532,118360.0,118350.0,0.00012393]
[1755407747431,7.02601427,118360.0,118350.0,0.00012393]
[1755407747914,7.02494427,118360.0,118350.0,0.00012393]
[1755407749975,7.02494427,118360.0,118350.0,0.03012393]
[1755407752455,6.33408781,118360.0,118350.0,0.03012393]
[1755407752668,7.02494427,118360.0,118350.0,0.03012393]
[1755407753219,6.9398763,118360.0,118350.0,0.03012393]
[1755407753560,6.9339393,118360.0,118350.0,0.03012393]
[1755407753770,6.93987171,118360.0,118350.0,0.03012393]
[1755407755409,6.9354569,118360.0,118350.0,0.03012393]
[1755407756813,6.93545918,118360.0,118350.0,0.03012393]
[1755407758487,7.02028042,118360.0,118350.0,0.03012393]
[1755407758709,6.84823036,118360.0,118350.0,0.03012393]
[1755407758858,6.85623036,118360.0,118350.0,0.03012393]
[1755407759083,6.77140912,118360.0,118350.0,0.03012393]
[1755407760274,7.03081232,118360.0,118350.0,0.03012393]
[1755407760633,6.25260272,118360.0,118350.0,0.03012393]
[1755407760845,7.03081232,118360.0,118350.0,0.03012393]
[1755407761714,6.23083322,118360.0,118350.0,0.03012393]
[1755407761936,7.0308211,118360.0,118350.0,0.03012393]
[1755407762178,7.03082151,118360.0,118350.0,0.03012393]
[1755407762617,7.11564275,118360.0,118350.0,0.03012393]
[1755407764734,7.11565584,118360.0,118350.0,0.03012393]
[1755407764957,7.0308346,118360.0,118350.0,0.03012393]
[1755407766907,7.0228346,118360.0,118350.0,0.03012393]
[1755407767368,6.7634314,118360.0,118350.0,0.03012393]
[1755407770639,6.74758283,118360.0,118350.0,0.03012393]
[1755407770860,6.76785998,118360.0,118350.0,0.03012393]
[1755407771472,6.76785998,118360.0,118350.0,0.03337393]
[1755407771844,6.77585998,118360.0,118350.0,0.03337393]
[1755407774268,6.25705358,118360.0,118350.0,0.03337393]
[1755407774493,6.77585998,118360.0,118350.0,0.03337393]
[1755407776370,7.12008442,118360.0,118350.0,0.03337393]
[1755407779757,7.11413749,118360.0,118350.0,0.03337393]
[1755407779976,7.12008593,118360.0,118350.0,0.03337393]
[1755407783747,7.03526469,118360.0,118350.0,0.03337393]
[1755407785883,7.02726469,118360.0,118350.0,0.03337393]
[1755407788872,7.02131735,118360.0,118350.0,0.03337393]
[1755407789110,7.02726412,118360.0,118350.0,0.03337393]
[1755407789326,6.11701452,118360.0,118350.0,0.03534393]
[1755407789555,1.36034652,118360.0,118350.0,0.03534393]
[1755407789760,1.36034652,118360.0,118350.0,0.22054327]
[1755407790007,1.61974972,118360.0,118350.0,0.05155299]
[1755407790224,1.61974972,118360.0,118350.0,0.03534393]
[1755407790225,1.61533478,118360.0,118350.0,0.03534393]
[1755407790440,1.61033478,118360.0,118350.0,0.20433421]
[1755407790682,1.61233478,118360.0,118350.0,0.20433421]
[1755407790979,1.35293158,118360.0,118350.0,0.20433421]
[1755407791634,1.35393158,118360.0,118350.0,0.20433421]
[1755407792291,1.35392701,118360.0,118350.0,0.20433421]
[1755407792496,1.08858155,118360.0,118350.0,0.20433421]
[1755407792635,1.47778475,118360.0,118350.0,0.20433421]
[1755407794595,1.34798475,118360.0,118350.0,0.20433421]
[1755407795130,1.08858155,118360.0,118350.0,0.20433421]
[1755407795331,1.34798475,118360.0,118350.0,0.20433421]
[1755407796508,1.34798475,118360.0,118350.0,0.03534393]
[1755407797657,1.29720475,118360.0,118350.0,0.03534393]
[1755407798293,1.29718038,118360.0,118350.0,0.03534393]
[1755407798937,1.29717963,118360.0,118350.0,0.03534393]
[1755407799845,0.12904716,118360.0,118350.0,0.23153499]
[1755407800072,0.0284,118360.0,118350.0,0.46373741]
[1755407800303,0.3684,118360.0,118350.0,0.33413421]
[1755407800727,0.0284,118360.0,118350.0,0.59353741]
[1755407800950,0.003,118360.0,118350.0,0.70273865]
[1755407801779,0.002,118360.0,118350.0,0.70273865]
[1755407802102,0.003,118360.0,118350.0,0.70273865]
[1755407802941,0.001,118360.0,118350.0,0.70273865]
[1755407803147,0.002,118360.0,118350.0,0.44333545]
[1755407803332,0.002,118360.0,118350.0,0.70273865]
[1755407807794,0.002,118360.0,118350.0,0.44333545]
[1755407807950,0.002,118360.0,118350.0,0.70273865]
[1755407809051,0.002,118360.0,118350.0,0.44333545]
[1755407809263,0.002,118360.0,118350.0,0.70273865]
[1755407811787,0.002,118360.0,118350.0,0.44333545]
[1755407811982,0.002,118360.0,118350.0,0.70273865]
[1755407813417,0.002,118360.0,118350.0,1.0469559]
[1755407813863,0.002,118360.0,118350.0,0.7875127]
[1755407814538,0.001,118360.0,118350.0,0.7875127]
[1755407814965,0.2594032,118380.0,118370.0,0.16896173]
[1755407815173,0.2594032,118380.0,118370.0,0.30070173]
[1755407815382,0.2594032,118380.0,118370.0,0.31450914]
[1755407817135,0.001,118380.0,118370.0,0.31450914]
[1755407817349,0.2604032,118380.0,118370.0,0.31450914]
[1755407817810,0.002,118380.0,118370.0,0.31450914]
[1755407818027,0.2614032,118380.0,118370.0,0.31450914]
[1755407820617,0.002,118380.0,118370.0,0.31450914]
[1755407821075,0.2614032,118380.0,118370.0,0.31450914]
[1755407821288,0.2614032,118380.0,118370.0,0.30377173]
[1755407821660,0.69147385,118380.0,118360.0,0.16896392]
[1755407821875,0.78786733,118380.0,118370.0,0.12972]
[1755407822111,0.81326333,118380.0,118370.0,0.12972]
[1755407822543,0.89814738,118380.0,118370.0,0.12972]
[1755407822757,0.50896173,118370.0,118360.0,0.16896392]
[1755407822990,0.78416161,118370.0,118360.0,0.29868392]
[1755407823200,0.78588161,118370.0,118360.0,0.29868392]
[1755407823385,0.78588161,118370.0,118360.0,0.16896392]
[1755407823635,0.78588161,118370.0,118360.0,0.29868392]
[1755407823843,0.61691988,118370.0,118360.0,0.29868392]
[1755407824031,0.61519988,118370.0,118360.0,0.35492968]
[1755407824467,0.5994032,118370.0,118360.0,0.35492968]
[1755407824680,0.61520851,118370.0,118360.0,0.35492968]
[1755407825128,0.61692851,118370.0,118360.0,0.35283968]
[1755407825356,0.61692851,118370.0,118360.0,0.29868392]
[1755407826557,0.52648704,118370.0,118360.0,0.29868392]
[1755407826771,0.78589024,118370.0,118360.0,0.29868392]
[1755407826999,0.78589024,118370.0,118350.0,0.21077372]
[1755407827241,0.52648704,118370.0,118360.0,0.12972]
[1755407827417,0.55288504,118370.0,118360.0,0.12972]
[1755407828277,0.98192353,118370.0,118360.0,0.12972]
[1755407828477,0.98292353,118370.0,118360.0,0.12972]
[1755407828686,0.98192353,118370.0,118360.0,0.12972]
[1755407829379,0.98292353,118370.0,118360.0,0.12972]
[1755407830597,0.508976,118360.0,118350.0,0.21077372]
[1755407830805,1.07091401,118360.0,118350.0,0.03012393]
[1755407831016,1.15679806,118360.0,118350.0,0.15984393]
[1755407831221,1.16273228,118360.0,118350.0,0.15984393]
[1755407831439,6.2953695,118360.0,118350.0,0.03012393]
[1755407831681,6.31359955,118360.0,118350.0,0.03012393]
[1755407831925,5.58616995,118360.0,118350.0,0.03012393]
[1755407832137,6.37237955,118360.0,118350.0,0.03012393]
[1755407833032,6.37337955,118360.0,118350.0,0.03012393]
[1755407833249,6.52337955,118360.0,118350.0,0.03012393]
[1755407833464,6.52737318,118360.0,118350.0,0.03012393]
[1755407833631,6.52737549,118360.0,118350.0,0.03012393]
[1755407834101,6.52737553,118360.0,118350.0,0.03012393]
[1755407834836,6.44110431,118360.0,118350.0,0.03012393]
[1755407836458,6.44108194,118360.0,118350.0,0.03012393]
[1755407838131,5.74914356,118360.0,118350.0,0.03012393]
[1755407838349,5.72743042,118360.0,118350.0,0.03012393]
[1755407838565,6.4193688,118360.0,118350.0,0.03012393]
[1755407838767,6.4252835,118360.0,118350.0,0.03012393]
[1755407839223,6.57077604,118360.0,118350.0,0.03012393]
[1755407839856,6.5550035,118360.0,118350.0,0.03012393]
[1755407840058,6.5490888,118360.0,118350.0,0.03012393]
[1755407841501,6.57077022,118360.0,118350.0,0.03012393]
[1755407841926,6.5490888,118360.0,118350.0,0.03012393]
[1755407842156,6.56485711,118360.0,118350.0,0.03012393]
[1755407842411,6.5490888,118360.0,118350.0,0.03012393]
[1755407843792,6.55500101,118360.0,118350.0,0.03012393]
[1755407843995,6.57076691,118360.0,118350.0,0.03012393]
[1755407844614,6.57518233,118360.0,118350.0,0.03012393]
[1755407847597,6.57518114,118360.0,118350.0,0.03012393]
[1755407847801,6.57410776,118360.0,118350.0,0.03012393]
[1755407848126,7.27410776,118360.0,118350.0,0.03012393]
[1755407850776,7.27410963,118360.0,118350.0,0.03012393]
[1755407851663,7.29687953,118360.0,118350.0,0.03012393]
[1755407855360,7.29246432,118360.0,118350.0,0.03012393]
[1755407855605,7.3228986,118360.0,118350.0,0.03012393]
[1755407856798,7.32294086,118360.0,118350.0,0.03012393]
[1755407857518,7.30017096,118360.0,118350.0,0.03012393]
[1755407859388,7.34519686,118360.0,118350.0,0.03012393]
[1755407859906,7.34626686,118360.0,118350.0,0.03012393]
[1755407860117,7.31476258,118360.0,118350.0,0.03012393]
[1755407862423,6.61476258,118360.0,118350.0,0.03012393]
[1755407862634,6.56973668,118360.0,118350.0,0.03012393]
[1755407863359,6.5697951,118360.0,118350.0,0.03012393]
[1755407864383,6.5697951,118360.0,118350.0,0.01997195]
[1755407865362,7.2697951,118360.0,118350.0,0.01997195]
[1755407865807,7.26982569,118360.0,118350.0,0.01997195]
[1755407866290,7.26982615,118360.0,118350.0,0.01997195]
[1755407866751,7.35625904,118360.0,118350.0,0.01997195]
[1755407871050,7.36067425,118360.0,118350.0,0.01997195]
[1755407871701,1.35082762,118360.0,118350.0,0.02508195]
[1755407871913,1.48220874,118360.0,118350.0,0.02508195]
[1755407872146,1.61192874,118360.0,118350.0,0.02508195]
[1755407872363,6.472762,118360.0,118350.0,0.02508195]
[1755407872567,6.44231174,118360.0,118350.0,0.02508195]
[1755407872954,6.43831174,118360.0,118350.0,0.02508195]
[1755407873153,6.44131174,118360.0,118350.0,0.02508195]
[1755407873408,6.44031174,118360.0,118350.0,0.02508195]
[1755407873553,6.31259174,118360.0,118350.0,0.02508195]
[1755407873758,6.44231174,118360.0,118350.0,0.02508195]
[1755407874193,6.44031174,118360.0,118350.0,0.02508195]
[1755407874350,6.41947565,118360.0,118350.0,0.02508195]
[1755407874740,6.24637781,118360.0,118350.0,0.02508195]
[1755407874918,6.24634721,118360.0,118350.0,0.02508195]
[1755407875616,5.90052775,118360.0,118350.0,0.02508195]
[1755407875834,6.04634409,118360.0,118350.0,0.02508195]
[1755407878624,6.02811404,118360.0,118350.0,0.02508195]
[1755407879325,6.22811404,118360.0,118350.0,0.02508195]
[1755407879539,6.02811404,118360.0,118350.0,0.02508195]
[1755407879750,6.22811404,118360.0,118350.0,0.02508195]
[1755407879962,6.02811404,118360.0,118350.0,0.02508195]
[1755407880378,6.22811404,118360.0,118350.0,0.02508195]
[1755407882246,0.54727959,118360.0,118350.0,0.19407223]
[1755407882446,0.62617959,118360.0,118350.0,0.19407223]
[1755407882707,0.60873057,118360.0,118350.0,0.19407223]
[1755407882953,0.60871669,118360.0,118350.0,0.19407223]
[1755407883112,0.60571669,118360.0,118350.0,0.19407223]
[1755407883259,0.14650064,118360.0,118350.0,0.25430982]
[1755407883480,0.13068,118360.0,118350.0,0.21800223]
[1755407883698,0.13168,118360.0,118350.0,0.21800223]
[1755407883919,0.47168,118360.0,118350.0,0.21800223]
[1755407884349,0.47068,118360.0,118350.0,0.21800223]
[1755407885470,0.001,118360.0,118350.0,0.56381857]
[1755407885710,0.001,118360.0,118350.0,0.64386698]
[1755407885925,0.001,118360.0,118350.0,0.77354698]
[1755407886123,0.34,118370.0,118360.0,0.168976]
[1755407886337,0.34,118370.0,118360.0,0.54385234]
[1755407886795,0.34,118370.0,118360.0,0.198036]
[1755407887212,0.34,118370.0,118360.0,0.199036]
[1755407888986,0.34,118370.0,118360.0,0.175106]
[1755407889227,0.34,118370.0,118360.0,0.00613]
[1755407889228,0.93959212,118370.0,118360.0,0.00613]
[1755407889459,0.94131212,118370.0,118360.0,0.00413]
[1755407889893,0.94131212,118370.0,118360.0,0.001]
[1755407890546,0.94231212,118370.0,118350.0,0.19208922]
[1755407890772,0.12964,118360.0,118350.0,0.19208922]
[1755407891002,0.298616,118360.0,118350.0,0.19408922]
[1755407893178,0.298616,118360.0,118350.0,0.19508922]
[1755407893536,0.38343724,118360.0,118350.0,0.19508922]
[1755407894613,0.72343724,118360.0,118350.0,0.19508922]
[1755407898658,0.72343724,118360.0,118350.0,0.02610195]
[1755407898659,1.07097358,118360.0,118350.0,0.02610195]
[1755407898876,1.07097358,118360.0,118350.0,0.02097195]
[1755407898877,1.15578763,118360.0,118350.0,0.02097195]
[1755407899088,1.17158622,118360.0,118350.0,0.02097195]
[1755407899304,1.19698622,118360.0,118350.0,0.02097195]
[1755407899775,1.61443524,118360.0,118350.0,0.02097195]
[1755407899994,1.61550524,118360.0,118350.0,0.02097195]
[1755407900213,1.62143365,118360.0,118350.0,0.02097195]
[1755407900960,1.59970665,118360.0,118350.0,0.01997195]
[1755407901160,1.62144463,118360.0,118350.0,0.01997195]
[1755407901572,1.6224467,118360.0,118350.0,0.01997195]
[1755407901783,6.5036097,118360.0,118350.0,0.01997195]
[1755407901983,6.41794354,118360.0,118350.0,0.01997195]
[1755407902886,6.41687354,118360.0,118350.0,0.01997195]
[1755407904011,6.0710572,118360.0,118350.0,0.02197195]
[1755407904247,0.78224999,118360.0,118350.0,0.19409223]
[1755407904523,0.61327399,118360.0,118350.0,0.19409223]
[1755407904955,0.61327399,118360.0,118350.0,0.27794751]
[1755407905174,0.78224999,118360.0,118350.0,0.19409223]
[1755407906058,1.12978633,118360.0,118350.0,0.01997195]
[1755407906262,1.13571789,118360.0,118350.0,0.01997195]
[1755407907500,0.78990155,118360.0,118350.0,0.01997195]
[1755407907701,1.13571789,118360.0,118350.0,0.01997195]
[1755407908107,1.33571789,118360.0,118350.0,0.01997195]
[1755407908359,1.38649789,118360.0,118350.0,0.01997195]
[1755407910187,1.3865022,118360.0,118350.0,0.01997195]
[1755407910885,1.04068586,118360.0,118350.0,0.01997195]
[1755407911091,1.3865022,118360.0,118350.0,0.01997195]
[1755407911313,1.3865022,118360.0,118350.0,0.02310195]
[1755407912781,1.3865022,118360.0,118350.0,0.02520195]
[1755407914000,1.47132344,118360.0,118350.0,0.02310195]
[1755407915295,1.46539116,118360.0,118350.0,0.02310195]
[1755407916156,1.46539116,118360.0,118350.0,0.01997195]
[1755407916532,1.11957482,118360.0,118350.0,0.01997195]
[1755407916707,1.46980596,118360.0,118350.0,0.01997195]
[1755407916915,1.82155462,118360.0,118350.0,0.01997195]
[1755407917242,1.82155547,118360.0,118350.0,0.01997195]
[1755407917438,1.47573913,118360.0,118350.0,0.01997195]
[1755407919359,1.47574992,118360.0,118350.0,0.01997195]
[1755407919602,1.82156626,118360.0,118350.0,0.01997195]
[1755407919850,1.82156652,118360.0,118350.0,0.01997195]
[1755407920544,6.65194952,118360.0,118350.0,0.01997195]
[1755407925330,5.96031684,118360.0,118350.0,0.01997195]
[1755407925517,6.65194952,118360.0,118350.0,0.01997195]
[1755407926482,6.67926813,118360.0,118350.0,0.01997195]
[1755407926686,6.67126813,118360.0,118350.0,0.01997195]
[1755407928238,6.66533259,118360.0,118350.0,0.01997195]
[1755407928495,6.67129586,118360.0,118350.0,0.01997195]
[1755407929154,6.67129399,118360.0,118350.0,0.01997195]
[1755407929598,6.67022399,118360.0,118350.0,0.01997195]
[1755407930734,6.67129399,118360.0,118350.0,0.01997195]
[1755407931346,6.6712926,118360.0,118350.0,0.01997195]
[1755407931765,6.6792926,118360.0,118350.0,0.01997195]
[1755407932195,6.8292926,118360.0,118350.0,0.01997195]
[1755407932895,6.85112869,118360.0,118350.0,0.01997195]
[1755407933337,6.85312869,118360.0,118350.0,0.01997195]
[1755407933571,6.8302926,118360.0,118350.0,0.01997195]
[1755407933999,6.8332926,118360.0,118350.0,0.01997195]
[1755407934224,6.87186298,118360.0,118350.0,0.01997195]
[1755407934446,6.87186344,118360.0,118350.0,0.01997195]
[1755407936188,6.87079344,118360.0,118350.0,0.01997195]
[1755407936381,6.74199836,118360.0,118350.0,0.01997195]
[1755407936593,6.27179176,118360.0,118350.0,0.02524195]
[1755407936790,1.45885778,118360.0,118350.0,0.02524195]
[1755407936968,1.45085778,118360.0,118350.0,0.02524195]
[1755407937530,1.43139873,118360.0,118350.0,0.02524195]
[1755407937714,1.43039873,118360.0,118350.0,0.02524195]
[1755407937935,1.22959908,118360.0,118350.0,0.02524195]
[1755407938073,1.12179486,118360.0,118350.0,0.02524195]
[1755407938467,1.19002388,118360.0,118350.0,0.02524195]
[1755407938737,1.13924388,118360.0,118350.0,0.02524195]
[1755407939833,1.14024388,118360.0,118350.0,0.02524195]
[1755407940555,1.14024351,118360.0,118350.0,0.02524195]
[1755407942524,1.14024344,118360.0,118350.0,0.02524195]
[1755407943544,1.73414498,118360.0,118350.0,0.02314195]
[1755407943793,6.56452798,118360.0,118350.0,0.01997195]
[1755407944002,6.64934922,118360.0,118350.0,0.01997195]
[1755407945540,6.64934925,118360.0,118350.0,0.01997195]
[1755407950731,6.64934975,118360.0,118350.0,0.01997195]
[1755407951607,6.64935136,118360.0,118350.0,0.01997195]
[1755407952032,6.64935136,118360.0,118350.0,0.02321195]
[1755407952715,1.03481578,118360.0,118350.0,0.02528195]
[1755407952935,1.38063212,118360.0,118350.0,0.02528195]
[1755407953174,1.12985212,118360.0,118350.0,0.19427223]
[1755407953362,1.12985212,118360.0,118350.0,0.02528195]
[1755407954520,1.1298494,118360.0,118350.0,0.02528195]
[1755407954955,1.11401541,118360.0,118350.0,0.02528195]
[1755407955164,1.1298494,118360.0,118350.0,0.02528195]
[1755407958251,0.78403306,118360.0,118350.0,0.02528195]
[1755407958496,1.1298494,118360.0,118350.0,0.02528195]
[1755407959344,1.13426414,118360.0,118350.0,0.02528195]
[1755407959598,0.7884478,118360.0,118350.0,0.02528195]
[1755407959799,1.13426414,118360.0,118350.0,0.02528195]
[1755407960378,0.7884478,118360.0,118350.0,0.02528195]
[1755407960592,1.13426414,118360.0,118350.0,0.02528195]
[1755407963801,1.13426125,118360.0,118350.0,0.02528195]
[1755407964453,1.13426376,118360.0,118350.0,0.02528195]
[1755407968908,1.18504376,118360.0,118350.0,0.02528195]
[1755407969117,1.13426376,118360.0,118350.0,0.02528195]
[1755407969776,1.13427263,118360.0,118350.0,0.02528195]
[1755407973028,1.1342725,118360.0,118350.0,0.02528195]
[1755407973496,1.13427225,118360.0,118350.0,0.02528195]
[1755407975506,0.78845591,118360.0,118350.0,0.02528195]
[1755407975709,1.13427225,118360.0,118350.0,0.02528195]
[1755407976816,1.21909349,118360.0,118350.0,0.02528195]
[1755407977891,1.22081349,118360.0,118350.0,0.02528195]
[1755407979649,0.77100689,118360.0,118350.0,0.19427223]
[1755407979860,0.76659215,118360.0,118350.0,0.19427223]
[1755407980288,0.3832421,118360.0,118350.0,0.60775043]
[1755407980513,0.0274,118360.0,118350.0,0.28639409]
[1755407980956,0.002,118360.0,118350.0,0.28639409]
[1755407981182,0.002,118360.0,118350.0,0.37121533]
[1755407981400,0.001,118360.0,118350.0,0.28639409]
[1755407981607,0.34,118370.0,118360.0,0.168976]
[1755407981819,0.34,118370.0,118360.0,0.170926]
[1755407982056,0.34,118370.0,118360.0,0.173976]
[1755407983926,0.34,118370.0,118360.0,0.174976]
[1755407986401,0.85649807,118370.0,118360.0,0.001]
[1755407986630,0.85649807,118370.0,118360.0,0.169976]
[1755407986853,0.85649807,118370.0,118360.0,0.173026]
[1755407987083,0.85649807,118370.0,118360.0,0.174976]
[1755407987758,0.51068173,118370.0,118360.0,0.174976]
[1755407987987,0.94131931,118370.0,118360.0,0.173026]
[1755407988614,0.94131931,118370.0,118360.0,0.174976]
[1755407988995,0.51068173,118370.0,118360.0,0.174976]
[1755407989504,0.85649807,118370.0,118360.0,0.174976]
[1755407990453,0.51068173,118370.0,118360.0,0.174976]
[1755407990665,0.85649807,118370.0,118360.0,0.174976]
[1755407990879,0.85649807,118370.0,118360.0,0.173026]
[1755407991501,0.98593807,118370.0,118360.0,0.174976]
[1755407991969,0.63840173,118370.0,118360.0,0.174976]
[1755407992385,0.50896173,118370.0,118360.0,0.174976]
[1755407993342,0.34,118370.0,118360.0,0.174976]
[1755407995393,0.34441426,118370.0,118360.0,0.174976]
[1755407996445,0.34441426,118370.0,118360.0,0.57013416]
[1755407996677,0.34,118370.0,118360.0,0.57013416]
[1755407996894,0.008,118390.0,118380.0,0.16894745]
[1755407997118,0.008,118390.0,118380.0,0.30033745]
[1755407997119,0.348,118390.0,118380.0,0.30033745]
[1755407997337,0.348,118390.0,118380.0,0.30338745]
[1755407998295,0.34,118390.0,118380.0,0.30338745]
[1755407998924,0.341,118390.0,118380.0,0.30338745]
[1755408000226,0.342,118390.0,118380.0,0.30338745]
[1755408000865,0.51093318,118390.0,118380.0,0.30338745]
[1755408001082,0.50893318,118390.0,118380.0,0.30338745]
[1755408001299,0.50993318,118390.0,118380.0,0.30338745]
[1755408001513,0.51093318,118390.0,118380.0,0.13444]
[1755408001734,0.50993318,118390.0,118380.0,0.12944]
[1755408001964,0.16894745,118380.0,118370.0,0.00305]
[1755408002181,0.16894745,118380.0,118370.0,0.12944]
[1755408002182,0.85648379,118380.0,118370.0,0.12944]
[1755408002624,0.88187979,118380.0,118370.0,0.12944]
[1755408004484,1.01127979,118380.0,118370.0,0.12944]
[1755408006291,0.88187979,118380.0,118370.0,0.12944]
[1755408008818,0.365396,118380.0,118370.0,0.33678523]
[1755408009047,0.53434345,118380.0,118370.0,0.33467321]
[1755408009504,0.365396,118380.0,118370.0,0.33467321]
[1755408009723,0.34,118380.0,118370.0,0.68048955]
[1755408010846,0.34,118380.0,118370.0,0.68148955]
[1755408011716,0.34,118380.0,118370.0,0.33567321]
[1755408025772,0.34,118380.0,118370.0,0.30468173]
[1755408026001,0.34,118380.0,118370.0,0.65049807]
[1755408027078,0.34,118380.0,118370.0,0.30468173]
[1755408028160,0.50894745,118380.0,118370.0,0.17524173]
[1755408028368,0.51066745,118380.0,118370.0,0.29932173]
[1755408029174,0.51066745,118380.0,118370.0,0.30249173]
[1755408034505,0.34,118380.0,118370.0,0.65026807]
[1755408034716,0.34,118380.0,118370.0,0.69825972]
[1755408035485,0.34,118380.0,118370.0,0.35244338]
[1755408035697,0.34,118380.0,118370.0,0.30445173]
[1755408046389,0.68753634,118380.0,118370.0,0.16996173]
[1755408046591,0.95822106,118380.0,118370.0,0.001]
[1755408046847,1.08754106,118380.0,118370.0,0.001]
[1755408047452,1.11293904,118380.0,118370.0,0.001]
[1755408050402,1.11186237,118380.0,118370.0,0.001]
[1755408053480,1.11185966,118380.0,118370.0,0.001]
[1755408053695,1.1966809,118380.0,118370.0,0.001]
[1755408053902,1.19668045,118380.0,118370.0,0.001]
[1755408054797,1.06736045,118380.0,118370.0,0.001]
[1755408055769,0.98253921,118380.0,118370.0,0.001]
[1755408056202,0.98695327,118380.0,118370.0,0.001]
[1755408056430,0.9711089,118380.0,118370.0,0.001]
[1755408056700,0.98695204,118380.0,118370.0,0.001]
[1755408060632,0.98695204,118380.0,118370.0,0.16996173]
[1755408060849,0.98695204,118380.0,118370.0,0.17311173]
[1755408061741,0.9711089,118380.0,118370.0,0.17311173]
[1755408061949,0.9869511,118380.0,118370.0,0.17311173]
[1755408062174,0.9711089,118380.0,118370.0,0.17311173]
[1755408062386,0.98695101,118380.0,118370.0,0.00415]
[1755408062605,0.98695101,118380.0,118370.0,0.001]
[1755408063046,0.9711089,118380.0,118370.0,0.001]
[1755408064113,1.05593014,118380.0,118370.0,0.001]
[1755408064353,1.20212215,118380.0,118370.0,0.001]
[1755408064558,1.22551218,118380.0,118370.0,0.001]
[1755408066131,0.50896173,118370.0,118360.0,0.42928]
[1755408066335,0.94131212,118370.0,118360.0,0.42928]
[1755408066556,0.96691842,118370.0,118360.0,0.3]
[1755408066781,6.77147503,118370.0,118360.0,0.3]
[1755408067005,6.42565869,118370.0,118360.0,0.3]
[1755408067583,6.42565869,118370.0,118360.0,0.301]
[1755408068014,6.42565869,118370.0,118360.0,0.3]
[1755408068430,6.42665869,118370.0,118360.0,0.3]
[1755408069573,6.42765869,118370.0,118360.0,0.3]
[1755408069763,6.08184235,118370.0,118360.0,0.3]
[1755408069913,6.42765869,118370.0,118360.0,0.3]
[1755408070664,6.42762661,118370.0,118360.0,0.3]
[1755408070878,6.44072544,118370.0,118360.0,0.3]
[1755408071296,6.46612844,118370.0,118360.0,0.3]
[1755408073074,6.46505844,118370.0,118360.0,0.3]
[1755408074130,6.16505844,118370.0,118350.0,0.01997195]
[1755408074310,5.57671841,118360.0,118350.0,0.01997195]
[1755408074521,0.74805541,118360.0,118350.0,0.02307195]
[1755408074923,0.77345741,118360.0,118350.0,0.02307195]
[1755408075146,0.77787211,118360.0,118350.0,0.02307195]
[1755408076238,1.11787211,118360.0,118350.0,0.02307195]
[1755408078013,1.16865211,118360.0,118350.0,0.02307195]
[1755408078227,1.16865211,118360.0,118350.0,0.01997195]
[1755408078653,1.25347335,118360.0,118350.0,0.01997195]
[1755408079251,1.16865211,118360.0,118350.0,0.01997195]
[1755408081111,0.82283577,118360.0,118350.0,0.01997195]
[1755408081312,1.16865211,118360.0,118350.0,0.01997195]
[1755408081737,1.16865211,118360.0,118350.0,0.02307195]
[1755408083428,1.18445832,118360.0,118350.0,0.02307195]
[1755408084970,1.18446044,118360.0,118350.0,0.02307195]
[1755408086828,1.3573147,118360.0,118350.0,0.02307195]
[1755408088836,1.34150637,118360.0,118350.0,0.02307195]